bitfinex/quotes_BTCUSD_20240717
["timestamp","ask_amount","ask_price","bid_price","bid_amount"]
[1721246053247,0.002794,64828.0,64824.0,0.20659651]
[1721246053465,0.002794,64828.0,64825.0,0.154261]
[1721246053670,0.154264,64824.0,64822.0,0.0777]
[1721246053844,0.07717479,64823.0,64820.0,0.219772]
[1721246054661,0.002794,64825.0,64820.0,0.0655]
[1721246054862,0.002794,64825.0,64822.0,0.154268]
[1721246055061,0.002794,64825.0,64820.0,0.0655]
[1721246055062,0.002794,64823.0,64821.0,0.15427]
[1721246055323,0.002794,64823.0,64822.0,0.0607518]
[1721246056365,0.002794,64827.0,64823.0,0.0825]
[1721246056607,0.04610397,64831.0,64824.0,0.374127]
[1721246056608,0.002794,64830.0,64824.0,0.374127]
[1721246056732,0.002794,64830.0,64826.0,0.154256]
[1721246056733,0.157043,64830.0,64826.0,0.154256]
[1721246057180,0.002794,64830.0,64827.0,0.0825]
[1721246057384,0.308483,64834.0,64828.0,0.0610883]
[1721246057385,0.002794,64831.0,64828.0,0.0610883]
[1721246057537,0.157039,64832.0,64828.0,0.0610883]
[1721246057739,0.002794,64830.0,64828.0,0.0610883]
[1721246057941,0.004794,64830.0,64828.0,0.2153423]
[1721246058153,0.002,64830.0,64828.0,0.2153423]
[1721246058354,0.157037,64833.0,64829.0,0.09804813]
[1721246058555,0.004794,64831.0,64829.0,0.09804813]
[1721246058953,0.001,64830.0,64829.0,0.09804813]
[1721246059363,0.002794,64831.0,64829.0,0.09804813]
[1721246059587,0.002794,64831.0,64829.0,0.09904813]
[1721246059762,0.002794,64831.0,64830.0,0.07054024]
[1721246060370,0.002794,64835.0,64834.0,0.15424]
[1721246060578,0.002794,64835.0,64834.0,0.8375]
[1721246060775,0.002794,64835.0,64834.0,0.60682]
[1721246060975,0.002794,64835.0,64834.0,0.67455602]
[1721246061992,0.003794,64835.0,64834.0,0.67455602]
[1721246062194,0.001,64835.0,64834.0,0.67455602]
[1721246062837,0.001,64835.0,64834.0,0.1441]
[1721246063006,0.001,64835.0,64833.0,0.15424]
[1721246063220,0.001,64835.0,64834.0,0.15424]
[1721246063459,0.002,64835.0,64834.0,0.15424]
[1721246064862,0.002,64835.0,64834.0,0.46272]
[1721246065065,0.002,64835.0,64834.0,0.56130442]
[1721246069623,0.002,64835.0,64834.0,0.25282442]
[1721246070479,0.002,64835.0,64830.0,0.07054024]
[1721246070785,0.07717479,64831.0,64828.0,0.0656]
[1721246071120,0.154259,64826.0,64822.0,0.154268]
[1721246071345,0.07717479,64823.0,64818.0,0.308555]
[1721246071575,0.07717479,64823.0,64820.0,0.154273]
[1721246071972,0.07717479,64823.0,64820.0,0.154272]
[1721246072526,0.002794,64822.0,64820.0,0.154272]
[1721246072988,0.07717479,64823.0,64820.0,0.154272]
[1721246073439,0.07717479,64823.0,64820.0,0.163272]
[1721246073646,0.07717479,64823.0,64820.0,0.22513277]
[1721246074601,0.07717479,64823.0,64820.0,0.21213277]
[1721246074834,0.154261,64825.0,64820.0,0.20413277]
[1721246075068,0.002794,64824.0,64821.0,0.15427]
[1721246075301,0.001,64823.0,64822.0,0.08830378]
[1721246075775,0.308515,64827.0,64822.0,0.08830378]
[1721246076008,0.001,64825.0,64822.0,0.08830378]
[1721246076252,0.003794,64825.0,64822.0,0.08830378]
[1721246076492,0.154259,64826.0,64822.0,0.08830378]
[1721246076735,0.002794,64825.0,64823.0,0.09095386]
[1721246079587,0.003794,64825.0,64823.0,0.09095386]
[1721246080054,0.001,64825.0,64823.0,0.09095386]
[1721246080288,0.003794,64825.0,64823.0,0.09095386]
[1721246080531,0.308537,64822.0,64813.0,0.000913]
[1721246080749,0.308537,64822.0,64814.0,0.12812322]
[1721246080750,0.154283,64816.0,64814.0,0.12812322]
[1721246080994,0.002794,64815.0,64814.0,0.154287]
[1721246081214,0.157071,64819.0,64814.0,0.154287]
[1721246081697,0.002794,64819.0,64817.0,0.154279]
[1721246081920,0.002794,64820.0,64817.0,0.154279]
[1721246082148,0.002794,64820.0,64818.0,0.0917728]
[1721246082371,0.157065,64821.0,64818.0,0.0917728]
[1721246083989,0.157065,64821.0,64816.0,0.154282]
[1721246084434,0.154273,64820.0,64816.0,0.154282]
[1721246084635,0.154273,64820.0,64815.0,0.0643]
[1721246084636,0.002794,64819.0,64817.0,0.154279]
[1721246084846,0.002794,64819.0,64815.0,0.0643]
[1721246084847,0.157067,64820.0,64816.0,0.154281]
[1721246084996,0.157067,64820.0,64817.0,0.0923746]
[1721246085201,0.002794,64820.0,64813.0,0.155202]
[1721246085394,0.04620342,64817.0,64813.0,0.155202]
[1721246085806,0.04620342,64815.0,64813.0,0.155202]
[1721246086061,0.308535,64823.0,64814.0,0.154285]
[1721246086361,0.04625007,64815.0,64814.0,0.154285]
[1721246086538,0.04625007,64816.0,64814.0,0.2681032]
[1721246087147,0.04625007,64815.0,64814.0,0.2681032]
[1721246088252,0.04625007,64816.0,64814.0,0.2681032]
[1721246088602,0.04625007,64815.0,64814.0,0.158287]
[1721246089177,0.30936242,64818.0,64814.0,0.154287]
[1721246089352,0.04624171,64816.0,64814.0,0.003]
[1721246089720,0.002794,64815.0,64814.0,0.0806287]
[1721246089860,0.04623424,64816.0,64813.0,0.155202]
[1721246090205,0.002794,64815.0,64813.0,0.155202]
[1721246091359,0.002794,64816.0,64814.0,0.162286]
[1721246091666,0.002794,64816.0,64814.0,0.154286]
[1721246091988,0.04902824,64817.0,64814.0,0.158286]
[1721246092193,0.002794,64817.0,64815.0,0.0785284]
[1721246092397,0.04901024,64817.0,64815.0,0.0785284]
[1721246093183,0.002794,64817.0,64815.0,0.0785284]
[1721246093414,0.002794,64817.0,64815.0,0.0805284]
[1721246094689,0.002794,64817.0,64815.0,0.002]
[1721246096475,0.157075,64817.0,64815.0,0.002]
[1721246096911,0.157075,64817.0,64815.0,0.008]
[1721246099727,0.23145679,64816.0,64815.0,0.008]
[1721246100212,0.771412,64816.0,64815.0,0.008]
[1721246100414,1.51612507,64816.0,64815.0,0.008]
[1721246100637,1.51612507,64816.0,64815.0,0.002]
[1721246100638,1.42396188,64816.0,64815.0,0.002]
[1721246100836,1.53930907,64816.0,64815.0,0.002]
[1721246101039,1.22027674,64816.0,64813.0,0.000913]
[1721246101281,1.15718679,64814.0,64813.0,0.000913]
[1721246101484,1.20646534,64814.0,64813.0,0.000913]
[1721246101939,1.32191169,64814.0,64813.0,0.000913]
[1721246102116,1.40051169,64814.0,64813.0,0.000913]
[1721246102289,1.46467886,64814.0,64813.0,0.001913]
[1721246102883,1.34926534,64814.0,64813.0,0.000913]
[1721246103238,1.35026534,64814.0,64813.0,0.001913]
[1721246103780,1.40026534,64814.0,64813.0,0.001913]
[1721246103981,1.40026534,64814.0,64813.0,0.002913]
[1721246103982,1.35098679,64814.0,64813.0,0.002913]
[1721246104232,2.78871148,64814.0,64813.0,0.002913]
[1721246104455,2.79632408,64814.0,64813.0,0.001913]
[1721246104648,2.79532408,64814.0,64813.0,0.00083468]
[1721246104848,2.88298761,64814.0,64813.0,0.00283468]
[1721246105057,2.88098761,64814.0,64813.0,0.00183468]
[1721246105255,2.79632408,64814.0,64813.0,0.00183468]
[1721246105428,2.79732408,64814.0,64813.0,0.00183468]
[1721246105631,2.79832408,64814.0,64813.0,0.00283468]
[1721246106199,2.79732408,64814.0,64813.0,0.00183468]
[1721246106905,2.79332408,64814.0,64813.0,0.00083468]
[1721246107058,2.79417387,64814.0,64813.0,0.00183468]
[1721246107258,2.79717387,64814.0,64813.0,0.00283468]
[1721246108237,2.93546391,64814.0,64813.0,0.00283468]
[1721246108440,2.79717387,64814.0,64813.0,0.00283468]
[1721246108813,2.38842408,64814.0,64813.0,0.00283468]
[1721246109301,1.83842408,64814.0,64813.0,0.00283468]
[1721246109676,1.46564908,64814.0,64813.0,0.00283468]
[1721246110180,1.41599374,64814.0,64813.0,0.00283468]
[1721246110383,1.51640394,64814.0,64813.0,0.00283468]
[1721246110583,1.58270394,64814.0,64813.0,0.00283468]
[1721246111146,1.89127894,64814.0,64813.0,0.00283468]
[1721246111648,1.89407294,64814.0,64813.0,0.00283468]
[1721246112451,2.00641966,64814.0,64813.0,0.00283468]
[1721246113194,2.31499466,64814.0,64813.0,0.00283468]
[1721246113437,2.53124705,64814.0,64813.0,6.8e-07]
[1721246113639,2.53404105,64814.0,64813.0,6.8e-07]
[1721246114071,2.61894684,64814.0,64813.0,6.8e-07]
[1721246114215,2.53404105,64814.0,64813.0,6.8e-07]
[1721246114658,2.61894997,64814.0,64813.0,6.8e-07]
[1721246115069,1.586152,64797.0,64796.0,0.000913]
[1721246115270,1.76770853,64797.0,64796.0,0.000913]
[1721246115592,1.91770853,64797.0,64796.0,0.000913]
[1721246115942,1.86770853,64797.0,64796.0,0.000913]
[1721246116137,1.91770853,64797.0,64796.0,0.000913]
[1721246116521,2.25436453,64797.0,64796.0,0.000913]
[1721246116651,1.99532047,64797.0,64796.0,0.000913]
[1721246116997,2.01742281,64797.0,64796.0,0.000913]
[1721246117393,2.0174118,64797.0,64796.0,0.000913]
[1721246117593,1.96938195,64797.0,64796.0,0.000913]
[1721246117769,1.98338195,64797.0,64796.0,0.001913]
[1721246117958,1.93038195,64797.0,64796.0,0.001913]
[1721246118384,1.99438195,64797.0,64796.0,0.001913]
[1721246118793,1.98038195,64797.0,64796.0,0.001913]
[1721246119196,1.94438195,64797.0,64796.0,0.001913]
[1721246119396,1.89570853,64797.0,64796.0,0.001913]
[1721246119603,1.94348337,64797.0,64796.0,0.001913]
[1721246119980,1.71910858,64797.0,64796.0,0.001913]
[1721246120182,1.41045258,64797.0,64796.0,0.001913]
[1721246120407,1.36267774,64797.0,64796.0,0.001913]
[1721246120608,0.89964,64797.0,64796.0,0.001913]
[1721246120808,0.89964,64797.0,64796.0,0.150313]
[1721246120809,0.590984,64797.0,64796.0,0.150313]
[1721246121572,0.88564,64797.0,64796.0,0.149313]
[1721246121801,0.562984,64797.0,64796.0,0.149313]
[1721246121995,0.582984,64797.0,64796.0,0.151313]
[1721246122613,0.89164,64797.0,64796.0,0.151313]
[1721246123420,0.89164,64797.0,64796.0,0.002913]
[1721246123421,1.35467774,64797.0,64796.0,0.002913]
[1721246123614,1.47470514,64797.0,64796.0,0.002913]
[1721246123943,1.35467774,64797.0,64796.0,0.002913]
[1721246126187,1.04602174,64797.0,64796.0,0.002913]
[1721246126592,1.35467774,64797.0,64796.0,0.002913]
[1721246127859,1.04602174,64797.0,64796.0,0.002913]
[1721246128542,1.35467774,64797.0,64796.0,0.002913]
[1721246128904,0.89164,64797.0,64796.0,0.002913]
[1721246129853,0.582984,64797.0,64796.0,0.002913]
[1721246130357,0.89164,64797.0,64796.0,0.002913]
[1721246131252,1.13518574,64797.0,64796.0,0.002913]
[1721246131424,1.54035864,64797.0,64796.0,0.002913]
[1721246132338,1.89901464,64797.0,64796.0,0.002913]
[1721246133097,1.84901464,64797.0,64796.0,0.002913]
[1721246133297,1.89901464,64797.0,64796.0,0.002913]
[1721246135289,1.89835917,64797.0,64796.0,0.002913]
[1721246135758,1.85213374,64797.0,64796.0,0.002913]
[1721246135988,1.89835917,64797.0,64796.0,0.002913]
[1721246136712,1.89798223,64797.0,64796.0,0.002913]
[1721246136947,0.05,64783.0,64773.0,0.0778]
[1721246137189,0.05,64783.0,64765.0,0.000913]
[1721246137190,0.84727479,64781.0,64768.0,0.1398]
[1721246137417,0.84727479,64781.0,64765.0,0.000913]
[1721246137418,0.77195,64771.0,64765.0,0.000913]
[1721246137648,1.12657849,64771.0,64765.0,0.000913]
[1721246138002,0.81779849,64771.0,64765.0,0.000913]
[1721246138378,0.81907462,64771.0,64765.0,0.000913]
[1721246138617,1.08073,64771.0,64765.0,0.000913]
[1721246138979,0.77195,64771.0,64765.0,0.000913]
[1721246139121,0.15439,64771.0,64770.0,0.150985]
[1721246139342,0.46317,64771.0,64770.0,0.1661748]
[1721246139970,0.46317,64771.0,64770.0,0.150985]
[1721246140308,0.46417,64771.0,64770.0,0.150985]
[1721246140487,0.77295,64771.0,64770.0,0.150985]
[1721246142844,0.77295,64771.0,64770.0,0.011185]
[1721246142845,1.08173,64771.0,64770.0,0.011185]
[1721246147324,0.77295,64771.0,64770.0,0.076285]
[1721246147534,0.15539,64771.0,64770.0,0.0918348]
[1721246147737,0.46417,64771.0,64770.0,0.0918348]
[1721246148391,0.46417,64771.0,64770.0,0.076285]
[1721246156556,0.15539,64771.0,64770.0,0.076285]
[1721246156765,0.001,64771.0,64770.0,0.312977]
[1721246156939,0.001,64771.0,64770.0,0.930545]
[1721246157146,0.001,64771.0,64770.0,1.3324748]
[1721246160044,0.001,64771.0,64770.0,1.48685654]
[1721246160209,0.001,64771.0,64770.0,2.01574054]
[1721246160614,0.001,64771.0,64770.0,1.79564054]
[1721246161018,0.33152379,64788.0,64784.0,0.1412]
[1721246161221,0.1,64788.0,64787.0,0.308703]
[1721246161400,0.04616487,64789.0,64788.0,0.154349]
[1721246161590,0.1,64790.0,64788.0,0.154349]
[1721246161784,0.1,64790.0,64787.0,0.154351]
[1721246162268,0.1,64790.0,64786.0,0.308708]
[1721246162269,0.07717479,64788.0,64786.0,0.154353]
[1721246162505,0.07717479,64788.0,64787.0,0.001]
[1721246162838,0.07717479,64788.0,64786.0,0.154353]
[1721246164572,0.07917479,64788.0,64786.0,0.154353]
[1721246164750,0.002,64788.0,64786.0,0.154353]
[1721246164956,0.259345,64790.0,64789.0,0.154347]
[1721246164957,0.005,64790.0,64789.0,0.154347]
[1721246165158,0.005,64790.0,64789.0,0.214447]
[1721246167110,0.1,64793.0,64790.0,0.154344]
[1721246167268,0.1,64793.0,64790.0,0.25466956]
[1721246167466,0.1,64793.0,64790.0,0.10032556]
[1721246167854,0.1,64793.0,64789.0,0.214446]
[1721246168099,0.1,64793.0,64789.0,0.219446]
[1721246168303,0.1,64793.0,64789.0,0.215446]
[1721246168631,0.1,64793.0,64789.0,0.214446]
[1721246168880,0.103,64793.0,64789.0,0.214446]
[1721246169162,0.103,64793.0,64790.0,0.0911958]
[1721246169343,0.103,64793.0,64790.0,0.2455398]
[1721246169921,0.07717479,64791.0,64789.0,0.214446]
[1721246170726,0.07717479,64791.0,64789.0,0.0601]
[1721246171392,0.003,64793.0,64789.0,0.0601]
[1721246171720,0.003,64793.0,64787.0,0.0801]
[1721246171721,0.00083,64796.0,64795.0,0.302232]
[1721246171896,0.00083,64796.0,64795.0,0.610897]
[1721246172102,0.00083,64796.0,64795.0,0.7028547]
[1721246174232,0.00083,64796.0,64795.0,0.7078547]
[1721246174401,0.00183,64796.0,64795.0,0.7078547]
[1721246174828,0.00183,64796.0,64795.0,0.615897]
[1721246175034,0.00183,64796.0,64795.0,0.617897]
[1721246175592,0.00183,64796.0,64795.0,0.227632]
[1721246175794,0.464821,64796.0,64795.0,0.007]
[1721246175993,1.90165532,64796.0,64795.0,0.007]
[1721246176250,1.95165532,64796.0,64795.0,0.007]
[1721246176711,2.04112461,64796.0,64795.0,0.007]
[1721246176884,2.04112461,64796.0,64795.0,0.005]
[1721246177103,0.154369,64780.0,64778.0,0.0752]
[1721246177271,0.154369,64780.0,64778.0,0.0919406]
[1721246177864,0.154366,64781.0,64778.0,0.0919406]
[1721246178663,0.154371,64779.0,64778.0,0.0167406]
[1721246178865,0.308737,64780.0,64774.0,0.0784]
[1721246179069,0.07717479,64783.0,64765.0,0.000913]
[1721246179070,0.77195,64771.0,64765.0,0.000913]
[1721246179616,1.08073,64771.0,64765.0,0.000913]
[1721246179941,1.33511174,64771.0,64765.0,0.000913]
[1721246180149,1.69179544,64771.0,64765.0,0.000913]
[1721246181188,1.42740259,64771.0,64770.0,0.011185]
[1721246181363,1.42740259,64771.0,64770.0,0.012185]
[1721246181364,1.48903179,64771.0,64770.0,0.012185]
[1721246181573,1.38274094,64771.0,64770.0,0.011185]
[1721246181769,1.47502857,64771.0,64770.0,0.009185]
[1721246181968,1.48902857,64771.0,64770.0,0.010185]
[1721246182194,1.48902857,64771.0,64770.0,0.009185]
[1721246182408,1.48964362,64771.0,64770.0,0.010185]
[1721246182610,1.50364362,64771.0,64770.0,0.010185]
[1721246183154,1.51764362,64771.0,64770.0,0.010185]
[1721246183540,1.50364362,64771.0,64770.0,0.010185]
[1721246184037,1.51764362,64771.0,64770.0,0.010185]
[1721246184247,1.37711174,64771.0,64770.0,0.010185]
[1721246184442,1.51744706,64771.0,64770.0,0.010185]
[1721246184606,1.37711174,64771.0,64770.0,0.010185]
[1721246185203,1.42533741,64771.0,64770.0,0.010185]
[1721246185434,1.37711174,64771.0,64770.0,0.010185]
[1721246186530,1.44628647,64771.0,64770.0,0.010185]
[1721246187299,1.37711174,64771.0,64770.0,0.010185]
[1721246187551,1.44628647,64771.0,64770.0,0.010185]
[1721246189131,0.91395,64771.0,64770.0,0.010185]
[1721246189251,0.9600565,64771.0,64770.0,0.010185]
[1721246189474,0.91395,64771.0,64770.0,0.010185]
[1721246191360,0.60517,64771.0,64770.0,0.010185]
[1721246192837,0.91395,64771.0,64770.0,0.010185]
[1721246193037,1.04393908,64771.0,64770.0,0.010185]
[1721246193237,2.18188082,64771.0,64770.0,0.010185]
[1721246193459,2.22798471,64771.0,64770.0,0.010185]
[1721246193631,2.23703666,64771.0,64770.0,0.010185]
[1721246193812,2.20903666,64771.0,64770.0,0.009185]
[1721246194008,2.22203666,64771.0,64770.0,0.009185]
[1721246194216,2.23303666,64771.0,64770.0,0.010185]
[1721246194440,2.20903666,64771.0,64770.0,0.009185]
[1721246194670,2.22303666,64771.0,64770.0,0.010185]
[1721246194872,2.23703666,64771.0,64770.0,0.010185]
[1721246195096,2.07904758,64771.0,64770.0,0.009185]
[1721246195489,2.09304758,64771.0,64770.0,0.010185]
[1721246195700,2.07904758,64771.0,64770.0,0.009185]
[1721246196097,2.09304758,64771.0,64770.0,0.009185]
[1721246196302,2.02389174,64771.0,64770.0,0.009185]
[1721246197095,2.03789174,64771.0,64770.0,0.010185]
[1721246197299,2.02389174,64771.0,64770.0,0.009185]
[1721246197503,2.03789174,64771.0,64770.0,0.010185]
[1721246197773,2.05189174,64771.0,64770.0,0.010185]
[1721246198288,2.03789174,64771.0,64770.0,0.010185]
[1721246198498,2.08397518,64771.0,64770.0,0.010185]
[1721246198710,2.09797518,64771.0,64770.0,0.010185]
[1721246199831,2.05189174,64771.0,64770.0,0.010185]
[1721246200474,2.00989174,64771.0,64770.0,0.009185]
[1721246200693,2.00989174,64771.0,64770.0,0.010185]
[1721246200909,2.03789174,64771.0,64770.0,0.010185]
[1721246203525,2.08584345,64771.0,64770.0,0.010185]
[1721246205494,1.77706345,64771.0,64770.0,0.010185]
[1721246205699,1.41106345,64771.0,64770.0,0.010185]
[1721246206308,1.36311174,64771.0,64770.0,0.010185]
[1721246206589,1.4110843,64771.0,64770.0,0.010185]
[1721246206792,1.3970843,64771.0,64770.0,0.010185]
[1721246206999,1.3830843,64771.0,64770.0,0.009185]
[1721246207200,1.3970843,64771.0,64770.0,0.009185]
[1721246208053,1.4110843,64771.0,64770.0,0.010185]
[1721246209480,1.41167675,64771.0,64770.0,0.010185]
[1721246209957,1.41171601,64771.0,64770.0,0.010185]
[1721246211095,1.25733427,64771.0,64770.0,0.010185]
[1721246212485,1.20873,64771.0,64770.0,0.010185]
[1721246212716,1.25727209,64771.0,64770.0,0.010185]
[1721246213264,1.41165383,64771.0,64770.0,0.010185]
[1721246213465,1.55395383,64771.0,64770.0,0.010185]
[1721246213931,1.86273383,64771.0,64770.0,0.010185]
[1721246214092,1.55395383,64771.0,64770.0,0.010185]
[1721246214486,1.86273383,64771.0,64770.0,0.010185]
[1721246214729,1.90881066,64771.0,64770.0,0.010185]
[1721246214971,1.60003066,64771.0,64770.0,0.010185]
[1721246215466,1.25727209,64771.0,64770.0,0.010185]
[1721246215666,1.20873,64771.0,64770.0,0.073685]
[1721246215838,1.25655203,64771.0,64770.0,0.073685]
[1721246217227,0.07582203,64771.0,64770.0,0.3258468]
[1721246217428,0.028,64771.0,64770.0,0.6346308]
[1721246217829,0.028,64771.0,64770.0,0.155785]
[1721246218209,0.154388,64772.0,64770.0,0.154785]
[1721246218564,0.46317,64771.0,64770.0,0.157785]
[1721246218769,0.46417,64771.0,64770.0,0.154785]
[1721246219169,0.46517,64771.0,64770.0,0.154785]
[1721246219892,0.46917,64771.0,64770.0,0.154785]
[1721246220091,0.77695,64771.0,64770.0,0.154785]
[1721246220246,0.46817,64771.0,64770.0,0.154785]
[1721246220792,0.5767398,64771.0,64770.0,0.009185]
[1721246220993,0.8855198,64771.0,64770.0,0.009185]
[1721246221560,1.1952998,64771.0,64770.0,0.009185]
[1721246221758,1.08673,64771.0,64770.0,0.009185]
[1721246221958,0.78095,64771.0,64770.0,0.009185]
[1721246222360,1.09373,64771.0,64770.0,0.009185]
[1721246222566,1.28829833,64771.0,64770.0,0.009185]
[1721246222772,1.44963391,64771.0,64770.0,0.009185]
[1721246223177,1.75841391,64771.0,64770.0,0.009185]
[1721246223666,1.80841391,64771.0,64770.0,0.009185]
[1721246223870,1.81341391,64771.0,64770.0,0.009185]
[1721246224319,1.8066116,64771.0,64770.0,0.009185]
[1721246224507,1.8156116,64771.0,64770.0,0.009185]
[1721246224709,1.8296116,64771.0,64770.0,0.009185]
[1721246225055,1.8436116,64771.0,64770.0,0.009185]
[1721246225283,1.8296116,64771.0,64770.0,0.009185]
[1721246225520,1.7796116,64771.0,64770.0,0.009185]
[1721246225718,1.7936116,64771.0,64770.0,0.009185]
[1721246225905,1.8296116,64771.0,64770.0,0.009185]
[1721246226140,1.7796116,64771.0,64770.0,0.009185]
[1721246226474,1.8296116,64771.0,64770.0,0.009185]
[1721246226691,1.7796116,64771.0,64770.0,0.009185]
[1721246226894,1.8296116,64771.0,64770.0,0.009185]
[1721246227319,1.080912,64760.0,64759.0,0.004381]
[1721246227950,1.17351947,64760.0,64759.0,0.004381]
[1721246228161,1.080912,64760.0,64759.0,0.004381]
[1721246228517,1.17351947,64760.0,64759.0,0.004381]
[1721246228737,1.18751947,64760.0,64759.0,0.004381]
[1721246229752,1.094912,64760.0,64759.0,0.004381]
[1721246230560,1.48612262,64760.0,64759.0,0.004381]
[1721246230804,1.47036087,64760.0,64759.0,0.004381]
[1721246231016,1.51706777,64760.0,64759.0,0.004381]
[1721246233265,1.65595592,64760.0,64759.0,0.004381]
[1721246233718,1.2266084,64760.0,64759.0,0.004381]
[1721246233867,0.93333894,64760.0,64759.0,0.004381]
[1721246234188,1.00180932,64760.0,64759.0,0.147881]
[1721246234388,0.93336316,64760.0,64759.0,0.147881]
[1721246236368,1.38030155,64760.0,64759.0,0.147881]
[1721246236689,1.38030155,64760.0,64759.0,0.004381]
[1721246236893,1.38018956,64760.0,64759.0,0.004381]
[1721246237425,1.38021912,64760.0,64759.0,0.004381]
[1721246237946,1.24211273,64760.0,64759.0,0.004381]
[1721246238156,0.577248,64760.0,64759.0,0.004381]
[1721246238351,0.014,64760.0,64759.0,0.302499]
[1721246238766,0.014,64760.0,64759.0,0.148081]
[1721246238976,0.014,64760.0,64759.0,0.1965291]
[1721246239173,0.08342799,64760.0,64759.0,0.1965291]
[1721246239561,0.014,64760.0,64759.0,0.1965291]
[1721246240901,0.06028477,64760.0,64759.0,0.3509471]
[1721246241115,0.06028477,64760.0,64759.0,0.1965291]
[1721246241327,0.014,64760.0,64759.0,0.1965291]
[1721246241658,0.014,64760.0,64759.0,0.3509471]
[1721246241853,0.06028471,64760.0,64759.0,0.6597841]
[1721246242306,0.014,64760.0,64759.0,0.9686211]
[1721246243132,0.006,64760.0,64759.0,0.9686211]
[1721246243459,0.006,64760.0,64759.0,0.611336]
[1721246243460,0.008,64760.0,64759.0,0.611336]
[1721246243660,0.008,64760.0,64759.0,0.302499]
[1721246243995,0.006,64760.0,64759.0,0.302499]
[1721246244196,0.04628247,64760.0,64759.0,0.302499]
[1721246244443,0.77208,64760.0,64759.0,0.005381]
[1721246244643,0.84150371,64760.0,64759.0,0.005381]
[1721246244866,0.77208,64760.0,64759.0,0.004381]
[1721246245068,0.77208,64760.0,64759.0,0.007381]
[1721246245273,0.77208,64760.0,64759.0,0.004381]
[1721246245662,0.77908,64760.0,64759.0,0.004381]
[1721246246414,0.78208,64760.0,64759.0,0.004381]
[1721246246837,0.77208,64760.0,64759.0,0.004381]
[1721246247156,0.78208,64760.0,64759.0,0.004381]
[1721246248028,0.79208,64760.0,64759.0,0.004381]
[1721246248165,0.78208,64760.0,64759.0,0.004381]
[1721246248365,1.48166957,64760.0,64759.0,0.004381]
[1721246248569,1.63546345,64760.0,64759.0,0.004381]
[1721246248942,1.51974915,64760.0,64759.0,0.004381]
[1721246249363,1.50284876,64760.0,64759.0,0.004381]
[1721246249517,1.51284876,64760.0,64759.0,0.004381]
[1721246249722,1.51984876,64760.0,64759.0,0.004381]
[1721246249901,1.47295527,64760.0,64759.0,0.004381]
[1721246252755,2.82392056,64754.0,64753.0,0.00087307]
[1721246253195,2.77392056,64754.0,64753.0,0.00087307]
[1721246253438,2.83792056,64754.0,64753.0,7e-08]
[1721246253648,2.78792056,64754.0,64753.0,7e-08]
[1721246253857,2.77392056,64754.0,64753.0,7e-08]
[1721246254188,2.80192056,64754.0,64753.0,7e-08]
[1721246254389,2.78792056,64754.0,64753.0,7e-08]
[1721246254776,2.85192056,64754.0,64753.0,7e-08]
[1721246254981,2.80192056,64754.0,64753.0,7e-08]
[1721246255339,2.85192056,64754.0,64753.0,7e-08]
[1721246255545,2.83768504,64754.0,64753.0,7e-08]
[1721246255766,2.85168504,64754.0,64753.0,7e-08]
[1721246255971,2.71848927,64754.0,64753.0,7e-08]
[1721246256175,0.64275,64746.0,64745.0,0.07539587]
[1721246256387,1.75010748,64746.0,64745.0,0.07539587]
[1721246256532,1.77310748,64746.0,64745.0,0.07539587]
[1721246256733,1.77333633,64746.0,64745.0,0.07539587]
[1721246256960,3.40893233,64746.0,64745.0,0.07539587]
[1721246257159,3.40893233,64746.0,64723.0,0.03]
[1721246257160,1.224131,64732.0,64723.0,0.03]
[1721246257412,2.17731177,64732.0,64723.0,0.03]
[1721246257562,2.50927777,64732.0,64723.0,0.03]
[1721246258292,2.62460719,64732.0,64723.0,0.03]
[1721246258465,2.62411123,64732.0,64723.0,0.03]
[1721246258667,2.45122969,64732.0,64723.0,0.03]
[1721246259343,2.33590029,64732.0,64723.0,0.03]
[1721246259936,2.34990029,64732.0,64723.0,0.03]
[1721246260137,2.44211567,64732.0,64723.0,0.03]
[1721246260341,2.65886629,64732.0,64723.0,0.03]
[1721246260542,2.79726157,64732.0,64723.0,0.03]
[1721246261314,2.65886629,64732.0,64723.0,0.03]
[1721246261532,2.66155871,64732.0,64723.0,0.03]
[1721246261704,2.66230104,64732.0,64723.0,0.03]
[1721246261904,2.64830104,64732.0,64723.0,0.03]
[1721246262107,2.66230104,64732.0,64723.0,0.03]
[1721246262283,2.75434964,64732.0,64723.0,0.03]
[1721246262485,2.37616025,64732.0,64723.0,0.03]
[1721246262708,2.36216025,64732.0,64723.0,0.03]
[1721246262908,2.37616025,64732.0,64723.0,0.03]
[1721246263178,2.42218046,64732.0,64723.0,0.03]
[1721246263359,2.36216025,64732.0,64723.0,0.03]
[1721246263935,2.01719425,64732.0,64723.0,0.03]
[1721246264162,1.65872874,64732.0,64723.0,0.03]
[1721246265223,1.64472874,64732.0,64723.0,0.03]
[1721246265432,1.66772874,64732.0,64723.0,0.03]
[1721246265638,1.68172874,64732.0,64723.0,0.03]
[1721246266085,1.66772874,64732.0,64723.0,0.03]
[1721246266497,1.68172874,64732.0,64723.0,0.03]
[1721246268189,1.69572874,64732.0,64723.0,0.03]
[1721246268394,1.67272874,64732.0,64723.0,0.03]
[1721246272043,1.72272874,64732.0,64723.0,0.03]
[1721246275463,1.67272874,64732.0,64723.0,0.03]
[1721246276591,1.72272874,64732.0,64723.0,0.03]
[1721246276788,1.67272874,64732.0,64723.0,0.03]
[1721246278358,1.7207052,64732.0,64723.0,0.03]
[1721246278877,1.7437052,64732.0,64723.0,0.03]
[1721246280794,1.4117392,64732.0,64731.0,0.072985]
[1721246281728,1.4117392,64732.0,64731.0,0.009185]
[1721246282441,1.7937052,64732.0,64731.0,0.009185]
[1721246282662,1.7797052,64732.0,64731.0,0.009185]
[1721246282884,1.73172874,64732.0,64731.0,0.009185]
[1721246283096,1.74453404,64732.0,64731.0,0.009185]
[1721246283276,1.74453408,64732.0,64731.0,0.009185]